bitfinex/quotes_SOLUSD_20230111
["timestamp","ask_amount","ask_price","bid_price","bid_amount"]
[1673464416743,20.0,15.727,15.719,47.72]
[1673464416954,17.0,15.726,15.719,47.72]
[1673464418623,17.0,15.726,15.716,47.73]
[1673464419582,20.0,15.727,15.717,20.0]
[1673464419899,20.0,15.728,15.719,20.0]
[1673464420202,20.0,15.729,15.719,20.0]
[1673464420417,20.0,15.733,15.721,20.0]
[1673464420622,5.155,15.739,15.722,47.71]
[1673464420623,20.0,15.735,15.722,47.71]
[1673464421258,25.017,15.735,15.723,20.0]
[1673464421572,23.517,15.735,15.723,20.0]
[1673464421987,17.0,15.734,15.723,20.0]
[1673464422608,23.718,15.735,15.723,20.0]
[1673464423047,5.218,15.735,15.723,20.0]
[1673464423238,18.26,15.74,15.724,47.71]
[1673464423451,18.26,15.74,15.725,20.0]
[1673464423452,18.38,15.74,15.725,20.0]
[1673464423668,18.4,15.74,15.726,47.7]
[1673464423872,18.26,15.74,15.726,47.7]
[1673464424288,19.14496728,15.743,15.726,47.7]
[1673464424498,119.4307,15.744,15.726,47.7]
[1673464424499,119.4307,15.744,15.727,20.0]
[1673464424822,119.4307,15.744,15.728,47.7]
[1673464425029,138.07566728,15.744,15.728,47.7]
[1673464425447,18.4,15.74,15.729,20.0]
[1673464425765,18.26,15.74,15.73,47.69]
[1673464425971,20.0,15.739,15.73,47.69]
[1673464426591,17.0,15.738,15.73,47.69]
[1673464426806,20.0,15.737,15.73,47.69]
[1673464427029,17.0,15.736,15.73,47.69]
[1673464427222,24.592,15.735,15.723,396.1]
[1673464427439,18.4,15.73,15.723,396.1]
[1673464427647,20.0,15.729,15.723,396.1]
[1673464427856,4.867,15.734,15.719,47.72]
[1673464428073,17.0,15.733,15.719,47.72]
[1673464428297,17.0,15.736,15.72,20.0]
[1673464428489,17.0,15.736,15.721,47.72]
[1673464428913,17.0,15.736,15.722,20.0]
[1673464429129,17.0,15.736,15.723,47.71]
[1673464429434,17.0,15.736,15.724,20.0]
[1673464429652,17.0,15.736,15.725,47.7]
[1673464430285,17.0,15.736,15.726,20.0]
[1673464430495,17.0,15.736,15.727,47.7]
[1673464430926,17.0,15.736,15.728,20.0]
[1673464431120,17.0,15.736,15.729,47.69]
[1673464431329,17.0,15.736,15.726,20.0]
[1673464431537,17.0,15.736,15.725,47.7]
[1673464431872,18.4,15.73,15.721,47.72]
[1673464432090,18.26,15.73,15.718,47.73]
[1673464432295,37.0,15.729,15.719,20.0]
[1673464432512,37.0,15.729,15.72,47.72]
[1673464433025,37.0,15.729,15.721,20.0]
[1673464434183,18.38,15.73,15.721,20.0]
[1673464434377,22.592,15.74,15.722,47.71]
[1673464434592,22.682,15.74,15.722,165.0758]
[1673464434802,22.682,15.74,15.723,20.0]
[1673464434803,18.4,15.74,15.723,20.0]
[1673464435013,18.4,15.74,15.724,47.71]
[1673464435224,18.26,15.74,15.725,20.0]
[1673464435435,18.38,15.74,15.726,47.7]
[1673464435639,18.31,15.74,15.726,47.7]
[1673464436061,20.0,15.739,15.727,20.0]
[1673464436275,20.0,15.739,15.728,47.7]
[1673464437007,20.0,15.743,15.728,47.7]
[1673464437212,20.0,15.743,15.729,20.0]
[1673464437429,20.0,15.743,15.73,47.69]
[1673464437970,4.062,15.747,15.73,47.69]
[1673464438193,17.0,15.743,15.732,20.0]
[1673464438376,17.0,15.743,15.733,47.68]
[1673464438586,20.0,15.742,15.732,20.0]
[1673464438803,20.0,15.742,15.733,47.68]
[1673464439233,24.088,15.749,15.734,20.0]
[1673464439456,24.088,15.749,15.735,47.67]
[1673464440379,24.088,15.749,15.732,20.0]
[1673464440380,43.23296728,15.749,15.732,20.0]
[1673464440711,18.4,15.74,15.732,20.0]
[1673464440921,37.0,15.739,15.732,20.0]
[1673464441119,20.0,15.739,15.732,20.0]
[1673464441553,20.0,15.739,15.732,67.68]
[1673464441761,17.0,15.738,15.732,20.0]
[1673464441959,20.0,15.737,15.732,20.0]
[1673464442167,20.0,15.739,15.732,67.68]
[1673464442381,20.0,15.739,15.732,20.0]
[1673464443970,24.757,15.747,15.732,67.68]
[1673464444185,20.0,15.746,15.732,67.68]
[1673464444383,4.389,15.748,15.732,67.68]
[1673464444592,4.389,15.748,15.733,110.9847]
[1673464444807,24.586,15.749,15.735,20.0]
[1673464445023,20.0,15.749,15.736,165.6087]
[1673464445338,20.0,15.749,15.737,20.0]
[1673464445525,20.0,15.749,15.738,47.66]
[1673464445739,20.0,15.749,15.739,20.0]
[1673464445949,25.1289192,15.75,15.739,20.0]
[1673464445950,25.1289192,15.75,15.74,47.66]
[1673464446371,43.5289192,15.75,15.74,47.66]
[1673464447127,20.0,15.749,15.74,47.66]
[1673464448067,20.0,15.749,15.741,20.0]
[1673464448270,20.0,15.749,15.742,47.65]
[1673464448691,20.0,15.749,15.743,20.0]
[1673464451740,20.0,15.749,15.737,20.0]
[1673464451951,21.222,15.748,15.737,20.0]
[1673464452181,21.222,15.748,15.733,158.6647]
[1673464452364,40.0,15.747,15.732,396.1]
[1673464452580,21.332,15.746,15.732,396.1]
[1673464453222,20.0,15.745,15.732,396.1]
[1673464453429,18.4,15.74,15.729,47.69]
[1673464453643,37.0,15.739,15.729,47.69]
[1673464453840,37.0,15.739,15.728,47.7]
[1673464454266,42.407,15.739,15.728,47.7]
[1673464454477,37.0,15.739,15.728,47.7]
[1673464455012,37.0,15.739,15.727,118.0467]
[1673464455414,37.0,15.739,15.728,47.7]
[1673464455625,5.508,15.738,15.727,118.0467]
[1673464455848,37.0,15.737,15.727,118.0467]
[1673464456175,37.0,15.737,15.724,47.71]
[1673464456476,18.31,15.73,15.722,47.71]
[1673464456693,37.0,15.729,15.717,164.0304]
[1673464456893,37.0,15.729,15.718,20.0]
[1673464457111,37.0,15.729,15.719,47.72]
[1673464457529,20.0,15.729,15.719,47.72]
[1673464457743,20.0,15.729,15.717,116.3004]
[1673464457744,17.0,15.728,15.718,47.73]
[1673464457934,17.0,15.728,15.717,116.3004]
[1673464458151,20.0,15.727,15.718,47.73]
[1673464458992,20.0,15.727,15.719,20.0]
[1673464459208,20.0,15.727,15.718,47.73]
[1673464459529,17.0,15.726,15.718,47.73]
[1673464459844,20.0,15.727,15.719,20.0]
[1673464460054,20.0,15.729,15.72,47.72]
[1673464460275,5.704,15.738,15.72,47.72]
[1673464460276,18.26,15.73,15.721,20.0]
[1673464460482,37.0,15.729,15.721,20.0]
[1673464460800,37.0,15.729,15.719,20.0]
[1673464461645,37.0,15.729,15.72,47.72]
[1673464462171,37.0,15.729,15.719,67.72]
[1673464463959,37.0,15.729,15.719,20.0]
[1673464464371,20.0,15.729,15.719,20.0]
[1673464464581,20.0,15.729,15.72,47.72]
[1673464464791,20.0,15.729,15.721,20.0]
[1673464465011,20.0,15.728,15.722,47.71]
[1673464465413,20.0,15.728,15.723,20.0]
[1673464465624,20.0,15.729,15.723,20.0]
[1673464466789,5.336,15.738,15.723,20.0]
[1673464467003,4.979,15.739,15.724,163.4996]
[1673464467220,27.6,15.74,15.724,163.4996]
[1673464467625,27.6,15.74,15.725,20.0]
[1673464467946,27.54,15.74,15.726,47.7]
[1673464468164,20.0,15.739,15.727,20.0]
[1673464468348,20.0,15.739,15.728,47.7]
[1673464468559,5.22,15.745,15.729,1250.0]
[1673464468796,281.09785051,15.777,15.73,47.69]
[1673464468797,5.222,15.748,15.73,47.69]
[1673464468988,20.0,15.764,15.73,47.69]
[1673464468989,5.221,15.749,15.731,110.8127]
[1673464469188,52.4889192,15.75,15.732,47.68]
[1673464469622,5.444,15.749,15.732,47.68]
[1673464469824,5.444,15.749,15.733,20.0]
[1673464470037,5.444,15.749,15.734,47.68]
[1673464470255,37.0,15.748,15.736,20.0]
[1673464470455,37.0,15.748,15.736,1270.0]
[1673464470671,5.854,15.747,15.736,1270.0]
[1673464470897,17.0,15.746,15.736,1270.0]
[1673464471841,17.0,15.746,15.736,1250.0]
[1673464472048,20.0,15.745,15.736,1250.0]
[1673464472458,17.0,15.744,15.736,1250.0]
[1673464472786,17.0,15.744,15.737,20.0]
[1673464473189,7.241,15.749,15.737,20.0]
[1673464474345,17.0,15.748,15.737,20.0]
[1673464474562,7.241,15.749,15.737,20.0]
[1673464474887,20.0,15.747,15.737,20.0]
[1673464475104,20.0,15.748,15.737,67.67]
[1673464475632,20.0,15.748,15.737,47.67]
[1673464475818,39.14496728,15.747,15.729,47.69]
[1673464476033,27.4,15.74,15.729,47.69]
[1673464476244,20.0,15.739,15.729,47.69]
[1673464476455,20.0,15.739,15.73,20.0]
[1673464476656,20.0,15.739,15.731,47.69]
[1673464477936,20.0,15.739,15.732,20.0]
[1673464479633,27.4,15.74,15.732,20.0]
[1673464479828,37.0,15.739,15.732,20.0]
[1673464481198,20.0,15.739,15.732,20.0]
[1673464481410,20.0,15.739,15.733,47.68]
[1673464481806,20.0,15.739,15.734,20.0]
[1673464482036,20.0,15.745,15.734,20.0]
[1673464482784,20.0,15.747,15.734,20.0]
[1673464482970,6.927,15.746,15.734,20.0]
[1673464483180,20.0,15.745,15.734,20.0]
[1673464483607,20.0,15.745,15.733,47.68]
[1673464483821,27.54,15.74,15.73,47.69]
[1673464484026,27.54,15.74,15.72,116.2227]
[1673464484027,27.4,15.74,15.729,47.69]
[1673464484225,20.0,15.739,15.729,47.69]
[1673464484565,20.0,15.739,15.73,20.0]
[1673464484885,20.0,15.739,15.734,5.0]
[1673464487938,17.0,15.738,15.734,5.0]
[1673464488236,20.0,15.737,15.734,5.0]
[1673464488460,17.0,15.736,15.734,5.0]
[1673464488636,20.0,15.737,15.734,5.0]
[1673464488844,20.0,15.739,15.734,5.0]
[1673464489088,17.0,15.738,15.734,5.0]
[1673464489288,20.0,15.737,15.734,5.0]
[1673464491167,20.0,15.737,15.728,47.7]
[1673464491395,17.0,15.736,15.726,47.7]
[1673464492044,17.0,15.736,15.725,47.7]
[1673464492257,24.15,15.736,15.725,47.7]
[1673464492464,17.0,15.736,15.723,47.71]
[1673464492675,17.0,15.736,15.725,67.7]
[1673464493003,17.0,15.736,15.725,47.7]
[1673464493205,17.0,15.736,15.723,47.71]
[1673464493418,17.0,15.736,15.725,47.7]
[1673464494791,17.0,15.736,15.726,20.0]
[1673464495097,17.0,15.736,15.727,47.7]
[1673464498660,17.0,15.736,15.726,47.7]
[1673464498869,20.0,15.735,15.718,118.2112]
[1673464499085,27.4,15.73,15.718,118.2112]
[1673464499296,37.0,15.729,15.718,118.2112]
[1673464499510,37.0,15.729,15.719,47.72]
[1673464500760,56.14496728,15.729,15.719,47.72]
[1673464500985,64.33796728,15.729,15.718,118.2112]
[1673464501816,56.14496728,15.729,15.718,118.2112]
[1673464503522,37.0,15.729,15.718,118.2112]
[1673464503712,35.5,15.729,15.718,118.2112]
[1673464503923,35.5,15.729,15.719,20.0]
[1673464506134,63.34696728,15.729,15.717,20.0]
[1673464506339,63.34696728,15.729,15.718,47.73]
[1673464506555,54.64496728,15.729,15.717,20.0]
[1673464507386,47.51996728,15.728,15.713,1414.0016]
[1673464507598,18.41,15.72,15.713,1414.0016]
[1673464507809,18.38,15.72,15.713,47.74]
[1673464508132,20.0,15.719,15.705,47.76]
[1673464508451,37.0,15.719,15.706,20.0]
[1673464508669,37.0,15.719,15.707,47.76]
[1673464508976,20.0,15.719,15.708,20.0]
[1673464509196,20.0,15.719,15.709,47.75]
[1673464509406,20.0,15.719,15.71,20.0]
[1673464509590,20.0,15.733,15.711,47.75]
[1673464509805,18.43,15.73,15.711,47.75]
[1673464510016,18.35,15.73,15.712,225.3447]
[1673464510226,20.0,15.729,15.713,47.74]
[1673464510472,20.0,15.729,15.714,20.0]
[1673464510671,20.0,15.729,15.715,47.73]
[1673464510852,20.0,15.729,15.716,20.0]
[1673464511194,20.0,15.729,15.717,47.73]
[1673464511610,19.14496728,15.728,15.716,20.0]
[1673464511926,37.0,15.727,15.716,20.0]
[1673464512129,37.0,15.727,15.715,47.73]
[1673464512346,56.14496728,15.727,15.715,47.73]
[1673464512543,7.994,15.726,15.714,47.74]
[1673464512757,7.994,15.726,15.713,67.74]
[1673464512758,18.43,15.72,15.713,67.74]
[1673464512971,37.0,15.719,15.713,67.74]
[1673464513380,37.0,15.719,15.712,113.7704]
[1673464513589,37.0,15.719,15.713,47.74]
[1673464514755,37.0,15.719,15.712,113.7704]
[1673464515278,37.0,15.719,15.713,20.0]
[1673464515506,37.0,15.719,15.713,67.74]
[1673464515719,37.0,15.719,15.713,20.0]
[1673464517181,37.0,15.719,15.713,67.74]
[1673464517928,37.0,15.719,15.713,20.0]
[1673464518332,20.0,15.719,15.713,20.0]
[1673464518649,20.0,15.719,15.713,67.74]
[1673464519595,27.63,15.72,15.713,67.74]
[1673464519820,37.0,15.719,15.713,67.74]
[1673464522543,37.0,15.719,15.713,47.74]
[1673464522863,37.0,15.719,15.712,113.7704]
[1673464523915,37.0,15.719,15.709,47.75]
[1673464524326,37.0,15.719,15.707,47.76]
[1673464524540,56.14496728,15.719,15.707,47.76]
[1673464524858,6.168,15.718,15.707,47.76]
[1673464525070,37.0,15.717,15.681,396.1]
[1673464525259,118.77273965,15.703,15.681,396.1]
[1673464525474,118.77273965,15.703,15.665,111.5696]
[1673464525475,23.338,15.702,15.67,55.3]
[1673464525689,56.14496728,15.702,15.671,47.87]
[1673464525899,6.938,15.701,15.671,47.87]
[1673464526107,37.0,15.7,15.672,34.79625693]
[1673464526339,6.675,15.699,15.673,47.86]
[1673464526529,27.52,15.69,15.673,47.86]
[1673464526739,27.52,15.69,15.675,20.0]
[1673464526740,20.0,15.689,15.675,20.0]
[1673464526969,37.0,15.689,15.676,47.85]
[1673464527161,7.38768,15.698,15.677,20.0]
[1673464527493,37.0,15.697,15.679,20.0]
[1673464527815,37.0,15.697,15.68,47.84]
[1673464528019,37.0,15.697,15.681,20.0]
[1673464528333,37.0,15.697,15.682,47.83]
[1673464528550,37.0,15.697,15.683,20.0]
[1673464528741,20.0,15.697,15.684,47.83]
[1673464528955,27.71,15.7,15.684,47.83]
[1673464528956,20.0,15.699,15.685,0.96]
[1673464529167,20.0,15.699,15.687,20.0]
[1673464529372,20.0,15.699,15.688,47.82]
[1673464529585,27.57,15.7,15.688,47.82]
[1673464529788,20.0,15.699,15.689,20.0]
[1673464530011,20.0,15.699,15.691,20.0]
[1673464530209,20.0,15.699,15.692,47.8]
[1673464530427,20.0,15.699,15.693,20.0]
[1673464530849,17.0,15.698,15.693,20.0]
[1673464531054,20.0,15.697,15.693,20.0]
[1673464531269,5.633,15.712,15.693,20.0]
[1673464531476,17.0,15.702,15.694,47.8]
[1673464531695,4.487,15.709,15.695,20.0]
[1673464532971,17.0,15.702,15.695,20.0]
[1673464533673,20.0,15.701,15.667,396.1]
[1673464533889,44.71,15.7,15.689,132.5349]
[1673464534099,20.0,15.699,15.689,132.5349]
[1673464534321,17.0,15.698,15.689,180.3449]
[1673464534535,20.0,15.697,15.689,180.3449]
[1673464534743,4.377,15.711,15.689,180.3449]
[1673464534938,20.0,15.729,15.689,180.3449]
[1673464534939,27.71,15.71,15.69,16.00445613]
[1673464535148,27.71,15.71,15.692,20.0]
[1673464535364,4.129,15.709,15.693,47.8]
[1673464536213,4.129,15.709,15.694,20.0]
[1673464536428,17.0,15.702,15.694,20.0]
[1673464536620,4.129,15.709,15.694,20.0]
[1673464536852,4.129,15.709,15.696,20.0]
[1673464539924,27.71,15.71,15.697,47.79]
[1673464540126,27.57,15.71,15.698,20.0]
[1673464540346,27.71,15.71,15.699,47.78]
[1673464540535,27.57,15.71,15.7,20.0]
[1673464540747,94.55293965,15.703,15.7,20.0]
[1673464541289,27.71,15.71,15.7,20.0]
[1673464541602,20.0,15.709,15.7,20.0]
[1673464547904,1.726,15.716,15.7,20.0]
[1673464548125,1.726,15.716,15.701,47.78]
[1673464548342,1.726,15.716,15.702,1.92]
[1673464548662,138.9928,15.72,15.703,47.77]
[1673464548865,139.1328,15.72,15.704,109.7933]
[1673464549082,138.9928,15.72,15.705,67.76]
[1673464549391,111.4228,15.72,15.705,67.76]
[1673464549594,138.9928,15.72,15.705,67.76]
[1673464549794,20.0,15.719,15.705,67.76]
[1673464551059,111.0721,15.728,15.705,67.76]
[1673464551277,111.0721,15.728,15.706,21.92]
[1673464551595,20.0,15.727,15.707,47.76]
[1673464551800,20.0,15.727,15.708,21.92]
[1673464552028,20.0,15.727,15.709,67.75]
[1673464552215,20.0,15.727,15.71,112.1075]
[1673464552427,20.0,15.727,15.711,47.75]
[1673464552951,20.0,15.727,15.712,20.0]
[1673464553174,20.0,15.727,15.713,47.74]
[1673464553584,20.0,15.727,15.714,20.0]
[1673464553798,20.0,15.727,15.715,47.73]
[1673464554009,17.0,15.726,15.716,20.0]
[1673464558226,20.0,15.727,15.716,20.0]
[1673464558835,20.0,15.729,15.718,20.0]
[1673464559167,20.0,15.729,15.719,47.72]
[1673464559608,27.71,15.73,15.72,20.0]
[1673464559807,20.0,15.729,15.72,20.0]
[1673464560650,25.1289192,15.75,15.72,47.71]
[1673464560870,27.71,15.74,15.722,20.0]
[1673464561178,27.71,15.74,15.724,20.0]
[1673464561391,27.57,15.74,15.724,20.0]
[1673464562218,20.0,15.739,15.724,20.0]
[1673464563598,20.0,15.739,15.725,47.7]
[1673464563810,20.0,15.739,15.726,20.0]
[1673464564014,1.691,15.738,15.726,20.0]
[1673464565279,18.691,15.738,15.726,20.0]
[1673464565494,20.0,15.737,15.727,47.7]
[1673464565806,17.0,15.736,15.728,20.0]
[1673464566018,20.0,15.737,15.728,20.0]
[1673464566230,20.0,15.739,15.728,20.0]
[1673464566732,20.0,15.739,15.73,20.0]
[1673464569255,2.691,15.743,15.73,20.0]
[1673464569477,2.463,15.747,15.731,47.69]
[1673464569687,2.463,15.747,15.732,20.0]
[1673464570006,2.463,15.747,15.734,20.0]
[1673464571582,1.905,15.749,15.734,20.0]
[1673464571796,1.769,15.747,15.734,20.0]
[1673464572003,17.0,15.743,15.734,20.0]
[1673464573271,1.769,15.747,15.734,20.0]
[1673464574202,1.769,15.747,15.736,20.0]
[1673464575054,1.769,15.747,15.738,20.0]
[1673464575369,20.0,15.749,15.739,47.66]
[1673464575575,20.0,15.749,15.74,20.0]
[1673464577985,17.0,15.748,15.74,20.0]
[1673464578206,20.0,15.747,15.74,20.0]
[1673464579041,17.0,15.746,15.74,20.0]
[1673464579882,20.0,15.747,15.74,20.0]
[1673464580109,20.0,15.749,15.74,20.0]
[1673464580300,17.0,15.748,15.74,20.0]
[1673464580628,20.0,15.747,15.74,20.0]
[1673464580816,17.0,15.746,15.74,20.0]
[1673464581571,20.0,15.747,15.74,20.0]
[1673464581792,20.0,15.749,15.74,20.0]
[1673464582850,17.0,15.748,15.74,20.0]
[1673464583052,20.0,15.747,15.74,20.0]
[1673464583454,17.0,15.746,15.74,20.0]
[1673464585367,20.0,15.747,15.74,20.0]
[1673464585686,20.0,15.749,15.74,20.0]
[1673464586927,25.1289192,15.75,15.74,20.0]
[1673464587151,25.1289192,15.75,15.741,47.66]
[1673464587468,25.1289192,15.75,15.742,20.0]
[1673464588929,25.1289192,15.75,15.741,47.66]
[1673464589139,43.3689192,15.75,15.737,67.67]
[1673464589466,1.637,15.749,15.737,20.0]
[1673464589677,21.637,15.749,15.737,20.0]
[1673464589881,17.0,15.748,15.737,67.67]
[1673464590088,20.0,15.747,15.737,67.67]
[1673464591023,20.0,15.749,15.737,67.67]
[1673464591471,25.1289192,15.75,15.737,67.67]
[1673464592088,25.1289192,15.75,15.738,17.0]
[1673464592302,25.1289192,15.75,15.739,47.66]
[1673464592513,25.1289192,15.75,15.74,20.0]
[1673464592736,25.1289192,15.75,15.741,47.66]
[1673464592939,25.1289192,15.75,15.742,20.0]
[1673464593351,43.4689192,15.75,15.742,20.0]
[1673464593896,20.0,15.749,15.742,20.0]
[1673464594631,20.0,15.749,15.74,20.0]
[1673464598308,17.0,15.748,15.738,47.66]
[1673464598525,20.0,15.747,15.737,67.67]
[1673464599019,20.0,15.747,15.737,20.0]
[1673464599228,20.0,15.747,15.736,114.8861]
[1673464599443,20.0,15.745,15.73,47.69]
[1673464599655,18.28,15.74,15.73,47.69]
[1673464599864,18.34,15.74,15.73,47.69]
[1673464600084,20.0,15.739,15.73,47.69]
[1673464600301,20.0,15.739,15.729,20.0]
[1673464600529,17.0,15.738,15.729,20.0]
[1673464600709,20.0,15.737,15.729,20.0]
[1673464600913,17.0,15.736,15.729,20.0]
[1673464601125,20.0,15.737,15.729,20.0]
[1673464601334,22.429,15.739,15.729,20.0]
[1673464601768,17.0,15.738,15.729,20.0]
[1673464601985,20.0,15.737,15.729,20.0]
[1673464603570,20.0,15.739,15.729,67.69]
[1673464604322,17.0,15.738,15.729,67.69]
[1673464604533,20.0,15.739,15.729,67.69]
[1673464604534,20.0,15.737,15.729,67.69]
[1673464604759,20.0,15.739,15.729,67.69]
[1673464607479,20.0,15.739,15.729,67.69]
[1673464609885,17.0,15.738,15.729,47.69]
[1673464610213,20.0,15.737,15.726,20.0]
[1673464610403,17.0,15.736,15.727,47.7]
[1673464610734,20.0,15.737,15.726,20.0]
[1673464610946,17.0,15.736,15.727,47.7]
[1673464611263,17.0,15.736,15.728,20.0]
[1673464611661,3.33,15.747,15.728,20.0]
[1673464611881,3.33,15.748,15.729,64.69]
[1673464612201,3.33,15.748,15.73,20.0]
[1673464612417,3.33,15.748,15.731,47.69]
[1673464612626,3.33,15.748,15.732,20.0]
[1673464612942,3.33,15.748,15.734,20.0]
[1673464613134,17.0,15.743,15.736,20.0]
[1673464614080,19.149,15.743,15.732,20.0]
[1673464614309,18.34,15.74,15.73,20.0]
[1673464614519,17.0,15.739,15.73,20.0]
[1673464615126,2.334,15.748,15.73,67.69]
[1673464615984,2.334,15.748,15.73,178.6665]
[1673464617346,17.0,15.743,15.731,17.0]
[1673464617564,17.0,15.743,15.732,47.68]
[1673464617880,2.334,15.748,15.733,20.0]
[1673464618199,17.0,15.743,15.733,20.0]
[1673464618409,17.0,15.743,15.734,47.68]
[1673464618814,17.0,15.743,15.735,20.0]
[1673464622712,2.334,15.748,15.735,20.0]
[1673464622916,17.0,15.743,15.735,20.0]
[1673464623240,2.334,15.748,15.735,20.0]
[1673464624905,39.334,15.748,15.735,20.0]
[1673464626164,39.334,15.748,15.736,47.67]
[1673464626165,22.334,15.748,15.736,47.67]
[1673464626575,20.0,15.747,15.736,47.67]
[1673464626812,2.334,15.748,15.737,20.0]
[1673464627006,2.334,15.748,15.738,47.66]
[1673464627425,2.334,15.748,15.739,20.0]
[1673464628914,19.334,15.748,15.739,20.0]
[1673464629122,20.0,15.747,15.739,20.0]
[1673464629319,17.0,15.746,15.739,20.0]
[1673464630705,20.0,15.747,15.739,20.0]
[1673464630895,17.0,15.746,15.739,20.0]
[1673464631543,2.334,15.748,15.739,20.0]
[1673464632258,20.0,15.749,15.739,20.0]
[1673464632679,21.745,15.749,15.739,20.0]
[1673464632907,17.0,15.748,15.739,20.0]
[1673464633116,20.0,15.747,15.739,20.0]
[1673464633642,20.0,15.749,15.739,20.0]
[1673464634272,20.0,15.749,15.74,47.66]
[1673464634881,20.0,15.749,15.741,20.0]
[1673464635092,43.4689192,15.75,15.741,20.0]
[1673464635307,25.1289192,15.75,15.741,20.0]
[1673464635511,25.1289192,15.75,15.742,47.65]
[1673464635947,25.1289192,15.75,15.743,20.0]
[1673464636148,25.1289192,15.75,15.744,47.65]
[1673464636798,25.1289192,15.75,15.743,20.0]
[1673464637823,25.1289192,15.75,15.742,47.65]
[1673464638036,25.1289192,15.75,15.741,20.0]
[1673464638037,43.4689192,15.75,15.741,20.0]
[1673464638257,37.0,15.749,15.741,20.0]
[1673464639942,37.0,15.749,15.736,20.0]
[1673464640886,37.0,15.749,15.737,67.67]
[1673464641105,20.0,15.749,15.737,67.67]
[1673464643016,17.0,15.748,15.737,67.67]
[1673464643233,20.0,15.747,15.737,67.67]
[1673464643427,20.0,15.749,15.737,67.67]
[1673464644050,25.1289192,15.75,15.738,1250.0]
[1673464644264,25.1289192,15.75,15.739,47.66]
[1673464644480,25.1289192,15.75,15.739,1297.66]
[1673464644796,25.1289192,15.75,15.74,20.0]
[1673464645014,25.1289192,15.75,15.741,47.66]